bitfinex-derivatives/quotes_ETHF0:USTF0_20240901
["timestamp","ask_amount","ask_price","bid_price","bid_amount"]
[1725200715403,0.7851,2446.0,2445.5,0.7912]
[1725200715606,0.7851,2446.0,2445.3,3.2078]
[1725200716307,4.0045,2446.4,2446.0,0.40884]
[1725200716507,0.7967,2446.4,2445.9,3.61666]
[1725200716710,0.40881,2446.3,2445.9,3.2078]
[1725200716921,0.7967,2446.4,2445.9,3.2078]
[1725200717109,0.40881,2446.3,2445.6,0.4089]
[1725200717308,0.40881,2446.3,2445.7,0.40889]
[1725200717513,0.7967,2446.4,2445.6,0.7666]
[1725200717514,0.7967,2446.4,2445.6,1.515]
[1725200717716,4.44350989,2446.2,2445.6,1.515]
[1725200718017,0.40887,2445.9,2445.6,0.7484]
[1725200718407,3.2078,2446.2,2445.6,0.7484]
[1725200718408,0.40885,2446.0,2445.6,0.7484]
[1725200718605,0.40887,2445.9,2445.6,0.7484]
[1725200719014,0.40884,2446.1,2445.6,0.7484]
[1725200719212,0.40885,2446.0,2445.6,1.515]
[1725200719611,0.40887,2445.9,2445.3,0.40896]
[1725200719814,0.40885,2446.0,2445.4,0.40895]
[1725200720016,4.50833914,2446.1,2445.6,0.4089]
[1725200720207,0.7967,2446.4,2445.7,1.5344]
[1725200720414,0.40882,2446.2,2445.7,1.5344]
[1725200720618,0.7967,2446.4,2445.7,1.5344]
[1725200720619,0.4088,2446.3,2445.7,1.94329]
[1725200720814,0.40884,2446.1,2445.7,1.5344]
[1725200721120,0.40891,2445.7,2445.2,0.00613234]
[1725200721314,0.40889,2445.8,2445.2,0.41510234]
[1725200721514,0.40887,2445.9,2445.3,0.40896]
[1725200722014,0.40888,2445.8,2445.3,0.40896]
[1725200722215,5.7699,2446.0,2445.2,0.00613234]
[1725200722415,0.40888,2445.8,2445.3,0.40896]
[1725200722619,4.163,2446.0,2445.5,0.40892]
[1725200722814,4.163,2446.0,2445.6,0.40891]
[1725200723009,4.163,2446.0,2445.3,8.50608984]
[1725200723219,4.163,2446.0,2445.8,0.40887]
[1725200723413,0.40881,2446.2,2445.7,0.40888]
[1725200723613,0.40881,2446.2,2445.7,1.97358]
[1725200724325,0.8085,2446.3,2445.8,0.40887]
[1725200724521,0.7967,2446.4,2446.0,0.40885]
[1725200724720,7.37693234,2446.5,2446.1,0.40882]
[1725200724923,7.37693234,2446.5,2445.9,3.2078]
[1725200724924,3.21393234,2446.5,2445.9,3.2078]
[1725200725120,0.00613234,2446.5,2445.9,3.2078]
[1725200725319,0.00613234,2446.5,2446.3,0.40879]
[1725200725727,0.00613234,2446.5,2446.4,0.40878]
[1725200725924,0.00613234,2446.5,2446.4,4.49678]
[1725200726519,4.163,2447.5,2446.7,0.40873]
[1725200726715,0.7603,2447.3,2446.8,3.2078]
[1725200727024,0.81,2447.5,2446.9,0.40869]
[1725200727214,0.81,2447.5,2447.0,0.40867]
[1725200727523,0.81,2447.5,2447.0,0.41480234]
[1725200727524,0.81613234,2447.5,2447.0,0.41480234]
[1725200728227,0.81613234,2447.5,2447.1,3.61646]
[1725200728724,0.00613234,2447.5,2447.1,0.40865]
[1725200728922,0.00613234,2447.5,2447.1,3.61645]
[1725200729124,0.00613234,2447.5,2447.1,3.2078]
[1725200729328,0.00613234,2447.5,2447.1,7.2942]
[1725200729528,0.00613234,2447.5,2447.4,0.40861]
[1725200729731,0.00613234,2447.5,2447.4,3.61641]
[1725200729916,0.00613234,2447.5,2447.4,7.70201]
[1725200730421,0.00613234,2447.5,2447.4,13.70201]
[1725200731225,0.00613234,2447.5,2447.4,7.2934]
[1725200731430,0.00613234,2447.5,2447.4,3.2078]
[1725200731728,0.00613234,2447.5,2447.4,7.70201]
[1725200732730,0.00613234,2447.5,2447.4,7.2934]
[1725200733339,0.00613234,2447.5,2447.0,0.00613234]
[1725200733628,0.41474234,2447.5,2447.1,0.40866]
[1725200733832,0.00613234,2447.5,2447.0,0.00613234]
[1725200734037,0.40863,2447.3,2447.0,0.00613234]
[1725200734232,0.00613234,2447.5,2447.0,0.00613234]
[1725200734233,0.40862,2447.4,2447.0,0.00613234]
[1725200734527,0.00613234,2447.5,2447.0,0.41480234]
[1725200734726,0.40864,2447.3,2447.0,0.00613234]
[1725200735027,0.40866,2447.1,2447.0,0.00613234]
[1725200736630,10.49506,2447.1,2447.0,0.00613234]
[1725200736931,0.40865,2447.2,2447.0,0.00613234]
[1725200737129,4.16913234,2447.5,2447.0,0.41480234]
[1725200737524,4.16913234,2447.5,2447.0,0.00613234]
[1725200737525,0.40862,2447.4,2447.0,0.00613234]
[1725200738039,0.00613234,2447.5,2447.2,0.40864]
[1725200738241,0.00613234,2447.5,2447.4,0.40861]
[1725200738734,0.00613234,2447.5,2447.4,4.49421]
[1725200738925,0.00613234,2447.5,2447.4,6.01801]
[1725200739119,0.00613234,2447.5,2447.4,12.01801]
[1725200739432,3.2078,2448.1,2447.7,0.40856]
[1725200739732,3.2078,2448.1,2447.4,4.7316]
[1725200740027,3.2078,2448.1,2447.6,0.40857]
[1725200740428,0.00613234,2448.1,2447.7,8.43065882]
[1725200740634,0.00613234,2448.1,2447.8,0.40855]
[1725200741225,0.00613234,2448.1,2447.9,0.40853]
[1725200741735,0.00613234,2448.1,2448.0,7.70111]
[1725200741929,0.00613234,2448.1,2448.0,3.2078]
[1725200742130,0.00613234,2448.1,2448.0,7.2926]
[1725200742527,1.04843365,2449.1,2448.0,27.42343343]
[1725200742847,0.40832,2449.2,2448.5,0.40843]
[1725200743034,1.98671,2449.3,2448.7,0.40839]
[1725200743634,0.00613234,2449.2,2448.8,0.00613234]
[1725200744029,0.00613234,2449.2,2448.8,0.41451234]
[1725200744338,0.00613234,2449.2,2448.8,0.00613234]
[1725200745236,0.00613234,2449.2,2448.9,0.40835]
[1725200745535,0.00613234,2449.2,2449.0,4.0832]
[1725200746037,4.001,2449.8,2448.9,3.2078]
[1725200746038,1.20143,2449.8,2449.2,0.4083]
[1725200746333,0.7932,2449.8,2449.2,3.2078]
[1725200746637,0.40827,2449.5,2449.2,3.2078]
[1725200746937,0.4083,2449.3,2449.2,3.2078]
[1725200747338,0.40829,2449.4,2449.2,3.2078]
[1725200747531,0.00613234,2449.6,2449.2,3.2078]
[1725200747532,0.4083,2449.3,2449.2,3.2078]
[1725200747725,0.4083,2449.3,2448.8,0.78533234]
[1725200748032,1.18357,2449.5,2448.9,8.81089542]
[1725200748331,0.40828,2449.4,2448.9,8.81089542]
[1725200748840,1.18357,2449.5,2448.9,8.81089542]
[1725200749229,1.18357,2449.5,2449.0,3.2078]
[1725200751234,0.7753,2449.5,2449.0,3.61614]
[1725200751443,0.7753,2449.5,2449.1,0.40833]
[1725200751642,0.7753,2449.5,2449.0,3.2078]
[1725200751935,0.7753,2449.5,2449.2,0.4083]
[1725200752341,0.00613234,2449.6,2449.3,0.40829]
[1725200752536,0.00613234,2449.6,2449.3,3.2078]
[1725200752843,0.00613234,2449.6,2449.0,3.2078]
[1725200753027,0.41438234,2449.6,2449.1,0.40832]
[1725200753231,0.41438234,2449.6,2449.1,5.82038475]
[1725200753633,0.40826,2449.5,2449.1,5.41206475]
[1725200754034,0.41438234,2449.6,2449.1,5.41206475]
[1725200754337,0.41438234,2449.6,2449.1,5.82039475]
[1725200754740,0.00613234,2449.6,2449.1,5.41206475]
[1725200755235,0.00613234,2449.6,2449.2,0.4083]
[1725200755432,0.40826,2449.5,2449.1,5.41206475]
[1725200755738,0.00613234,2449.6,2449.2,0.40831]
[1725200755935,0.00613234,2449.6,2449.3,0.40829]
[1725200756138,0.00613234,2449.6,2449.5,0.40826]
[1725200756527,0.00613234,2449.6,2449.5,9.90487034]
[1725200757342,0.40816,2450.2,2449.7,0.40823]
[1725200757638,0.40816,2450.2,2449.8,0.4082]
[1725200757639,0.40815,2450.2,2449.8,0.4082]
[1725200758031,3.2078,2450.3,2449.7,3.2078]
[1725200758032,3.61594,2450.3,2449.7,3.2078]
[1725200758229,3.2078,2450.3,2449.9,0.40819]
[1725200758529,3.2078,2450.3,2450.0,3.2078]
[1725200758530,0.00400331,2450.3,2450.0,3.2078]
[1725200758937,0.40815,2450.2,2450.1,5.37104364]
[1725200759137,0.40815,2450.2,2450.0,3.2078]
[1725200759339,0.40817,2450.1,2449.7,3.2078]
[1725200759540,1.19197,2450.1,2449.7,3.2078]
[1725200759846,0.00400331,2450.3,2449.7,3.2078]
[1725200759847,0.00400331,2450.3,2449.8,5.41285878]
[1725200760046,0.00400331,2450.3,2449.9,0.40819]
[1725200760237,0.41214331,2450.3,2449.9,0.40819]
[1725200760547,0.41214331,2450.3,2450.0,5.2545814]
[1725200760548,0.40815,2450.2,2450.0,5.2545814]
[1725200760744,0.40815,2450.2,2448.7,1.42976]
[1725200760745,3.2078,2450.1,2448.8,0.00613234]
[1725200760945,3.2078,2449.1,2448.8,0.00613234]
[1725200761243,3.2078,2449.1,2448.9,5.2545814]
[1725200761642,3.2078,2449.1,2448.9,9.3377814]
[1725200761844,3.2078,2449.1,2448.9,5.2545814]
[1725200762047,3.2078,2449.1,2448.8,0.00613234]
[1725200764547,3.61613,2449.1,2448.8,0.00613234]
[1725200764744,0.40836,2448.9,2448.8,0.00613234]
[1725200765247,4.49156,2448.9,2448.8,0.00613234]
[1725200765840,4.49156,2448.9,2448.1,0.4088]
[1725200765841,0.40843,2448.6,2448.1,0.4088]
[1725200766041,3.2078,2448.5,2448.1,0.4088]
[1725200766241,3.61623,2448.5,2448.1,0.4088]
[1725200766443,3.2078,2448.5,2448.1,0.4088]
[1725200766646,3.61624,2448.5,2448.1,0.4088]
[1725200766851,3.61624,2448.5,2448.1,0.41493234]
[1725200767046,0.40845,2448.4,2448.1,0.00613234]
[1725200767242,3.2078,2448.2,2448.1,0.00613234]
[1725200767450,3.61628,2448.2,2448.1,0.00613234]
[1725200767838,3.61628,2448.2,2447.1,1.2345]
[1725200767839,0.40856,2447.8,2447.1,1.2345]
[1725200768042,3.2078,2448.0,2447.3,0.40862]
[1725200768348,3.2078,2448.0,2447.6,5.31737511]
[1725200768554,3.2078,2448.0,2447.6,0.20871202]
[1725200768739,3.2078,2448.0,2447.7,0.792]
[1725200768946,3.2078,2448.3,2447.7,10.19868866]
[1725200769139,3.2078,2448.3,2447.8,0.757]
[1725200769446,3.2078,2448.3,2447.9,5.20101717]
[1725200771051,3.61632,2448.0,2447.7,0.792]
[1725200771246,3.61632,2448.0,2447.6,0.00613234]
[1725200771247,0.40853,2447.9,2447.6,0.00613234]
[1725200771752,3.61632,2448.0,2447.6,0.00613234]
[1725200772345,3.2078,2447.7,2447.6,0.00613234]
[1725200772753,4.38006,2447.7,2447.6,0.00613234]
[1725200772954,8.46566,2447.7,2447.6,0.00613234]
[1725200776553,14.0571,2447.7,2446.5,4.3757]
[1725200776754,14.0571,2447.7,2446.3,4.148]
[1725200776755,3.2078,2446.7,2446.3,4.148]
[1725200776954,3.61654,2446.7,2446.1,0.787]
[1725200777252,3.2078,2446.7,2446.2,9.09439092]
[1725200777446,3.2078,2446.7,2446.2,8.68559092]
[1725200777649,3.2078,2446.7,2446.2,18.10723837]
[1725200777650,3.21393234,2446.7,2446.2,18.10723837]
[1725200777845,3.21393234,2446.7,2446.2,14.02003837]
[1725200778154,3.62266234,2446.7,2446.2,14.02003837]
[1725200778458,3.62267234,2446.7,2446.2,14.02003837]
[1725200778854,0.40875,2446.6,2446.2,14.02003837]
[1725200779153,3.21393234,2446.7,2446.3,0.40879]
[1725200779358,3.21393234,2446.7,2446.2,14.42884837]
[1725200779560,3.21393234,2446.7,2446.3,0.4088]
[1725200779859,3.21393234,2446.7,2446.4,0.40878]
[1725200780154,3.21393234,2446.7,2446.6,0.40875]
[1725200780361,0.00613234,2446.7,2446.6,0.40875]
[1725200780553,0.00613234,2446.7,2446.6,19.84720558]
[1725200780945,0.00613234,2446.7,2446.6,13.43845558]
[1725200781146,0.00613234,2446.7,2446.6,0.8268]
[1725200782154,0.00613234,2446.7,2446.6,1.23555]
[1725200782353,0.00613234,2446.7,2446.6,16.65151297]
[1725200782553,0.00613234,2446.7,2446.6,19.85931297]
[1725200783755,0.00613234,2446.7,2446.6,13.85931297]
[1725200784155,0.00613234,2446.7,2446.6,19.85931297]
[1725200784555,0.00613234,2446.7,2446.6,10.24276297]
[1725200784755,0.00613234,2446.7,2446.6,16.65151297]
[1725200785656,3.2078,2447.3,2446.6,16.24276297]
[1725200785853,3.61643,2447.3,2446.8,0.4087]
[1725200786057,3.2078,2447.3,2446.8,3.2078]
[1725200786253,3.2078,2447.3,2447.0,0.40868]
[1725200786649,3.2078,2447.3,2446.9,5.72427099]
[1725200787157,3.2078,2447.3,2446.9,5.31558099]
[1725200787362,0.00613234,2447.4,2447.0,0.40867]
[1725200787558,0.00613234,2447.4,2447.1,0.40866]
[1725200787961,0.00613234,2447.4,2447.3,3.2078]
[1725200788260,3.2078,2448.3,2448.0,0.40851]
[1725200788458,3.2078,2448.3,2447.8,3.2078]
[1725200788664,3.2078,2448.3,2448.1,0.40849]
[1725200788862,4.0373,2448.8,2448.2,4.49328]
[1725200789060,3.2078,2448.5,2447.9,14.77883176]
[1725200789261,3.62233234,2448.7,2448.3,0.00613234]
[1725200789459,3.21393234,2448.7,2448.3,0.00613234]
[1725200790154,3.21393234,2448.7,2448.4,0.40844]
[1725200790961,3.21393234,2448.7,2448.4,4.084]
[1725200791162,3.21393234,2448.7,2448.4,0.40844]
[1725200791658,3.21393234,2448.7,2448.3,0.00613234]
[1725200791659,3.21393234,2448.7,2448.3,0.41459234]
[1725200791855,3.21393234,2448.7,2448.4,0.40844]
[1725200792450,3.21393234,2448.7,2448.3,0.00613234]
[1725200793155,3.21393234,2448.7,2448.3,0.41459234]
[1725200793566,3.21393234,2448.7,2448.3,0.00613234]
[1725200793960,3.62233234,2448.7,2448.3,0.00613234]
[1725200794560,0.40841,2448.6,2448.3,0.00613234]
[1725200794956,0.7623,2448.5,2448.3,0.00613234]
[1725200795663,5.25473,2448.5,2448.3,0.00613234]
[1725200796261,7.70025,2448.4,2448.3,0.00613234]
[1725200796462,8.49705,2448.4,2448.3,0.00613234]
[1725200796764,14.49705,2448.4,2448.3,0.00613234]
[1725200797360,8.49705,2448.4,2448.3,0.00613234]
[1725200798066,14.49705,2448.4,2448.3,0.00613234]
[1725200798263,8.49705,2448.4,2448.3,0.00613234]
[1725200799563,18.6169238,2448.4,2447.6,3.2078]
[1725200799765,18.6169238,2448.4,2447.4,0.4086]
[1725200799766,0.40852,2448.0,2447.4,0.4086]
[1725200799973,3.6163,2448.1,2447.5,0.40859]
[1725200800175,4.0046,2448.4,2447.5,5.37361362]
[1725200800464,0.40848,2448.2,2447.7,0.40855]
[1725200800671,0.40848,2448.2,2447.7,0.41468234]
[1725200800967,4.0046,2448.4,2447.9,0.40852]
[1725200801269,4.41305,2448.4,2447.9,0.40852]
[1725200801458,4.41305,2448.4,2447.8,5.83065489]
[1725200801459,0.40846,2448.3,2447.8,5.83065489]
[1725200801658,4.41305,2448.4,2447.8,5.83065489]
[1725200802158,0.40846,2448.3,2447.8,5.83065489]
[1725200802558,0.40846,2448.3,2447.7,3.21393234]
[1725200803564,3.2078,2448.4,2447.9,0.40852]
[1725200803765,3.2078,2448.4,2448.1,0.40849]
[1725200804262,3.2078,2448.4,2448.0,0.4085]
[1725200804466,3.2078,2448.4,2447.9,0.40852]
[1725200804467,3.61625,2448.4,2447.9,0.40852]
[1725200804667,3.61625,2448.4,2447.8,9.98807105]
[1725200804668,3.2078,2448.4,2447.8,9.98807105]
[1725200804860,0.7623,2448.5,2448.1,0.40848]
[1725200805059,0.7623,2448.5,2448.2,0.40848]
[1725200805264,0.7623,2448.5,2448.1,0.40849]
[1725200805774,0.40845,2448.4,2447.9,0.40852]
[1725200806162,7.2926,2448.4,2447.7,0.00613234]
[1725200806363,3.6163,2448.1,2447.7,0.00613234]
[1725200806561,0.40852,2448.0,2447.7,0.00613234]
[1725200806757,0.40853,2447.9,2447.7,0.00613234]
[1725200806970,0.40855,2447.8,2447.7,0.00613234]
[1725200807160,3.2078,2448.1,2447.7,0.00613234]
[1725200807374,0.40852,2448.0,2447.7,0.00613234]
[1725200807666,0.40853,2447.9,2447.7,0.00613234]
[1725200807859,3.2078,2448.1,2447.7,0.00613234]
[1725200807860,0.40855,2447.8,2447.7,0.00613234]
[1725200808260,7.70195,2447.8,2447.7,0.00613234]
[1725200810570,7.2934,2447.8,2447.7,0.00613234]
[1725200811158,7.70195,2447.8,2447.7,0.00613234]
[1725200812175,9.77175365,2447.8,2447.7,0.00613234]
[1725200812570,15.77175365,2447.8,2447.7,0.00613234]
[1725200812872,0.40863,2447.4,2447.0,3.2078]
[1725200813061,0.40866,2447.1,2447.0,3.2078]
[1725200813268,4.25598036,2447.5,2447.0,3.2078]
[1725200813766,0.40865,2447.2,2447.0,3.21393234]
[1725200814163,0.40866,2447.1,2447.0,3.21393234]
[1725200814772,0.40866,2447.1,2447.0,0.00613234]
[1725200814773,3.61646,2447.1,2447.0,0.00613234]
[1725200814978,7.70286,2447.1,2447.0,0.00613234]
[1725200815476,1.04818036,2447.4,2447.0,0.00613234]
[1725200815675,1.0543127,2447.5,2447.1,0.40865]
[1725200815863,0.00613234,2447.5,2447.2,0.40864]
[1725200816777,0.00613234,2447.5,2447.4,3.61641]
[1725200816968,0.00613234,2447.5,2447.4,3.2078]
[1725200817164,0.00613234,2447.5,2447.1,1.5334]
[1725200817471,0.00613234,2447.5,2447.4,5.2018641]
[1725200817671,0.00613234,2447.5,2447.4,11.6104741]
[1725200817879,0.00613234,2447.5,2447.4,13.70201]
[1725200818087,0.00613234,2447.5,2447.4,18.91956867]
[1725200819379,3.2078,2448.2,2447.7,0.40855]
[1725200820381,3.21393234,2448.2,2447.7,0.40855]
[1725200820585,3.21393234,2448.2,2447.6,0.40857]
[1725200820786,3.21393234,2448.2,2447.4,12.98195867]
[1725200820984,0.40852,2448.0,2447.4,12.57335867]
[1725200821173,4.2621127,2448.2,2447.4,12.98195867]
[1725200821174,0.4085,2448.1,2447.4,12.98195867]
[1725200821380,0.40852,2448.0,2447.4,12.57335867]
[1725200821980,0.40852,2448.0,2447.4,12.98195867]
[1725200822488,0.40852,2448.0,2447.4,12.57335867]
[1725200822691,0.40852,2448.0,2447.4,12.98196867]
[1725200822880,0.3883,2448.1,2447.5,0.4086]
[1725200823589,4.6705927,2448.2,2447.6,0.40858]
[1725200823885,4.6705927,2448.2,2447.7,2.01555]
[1725200824090,0.4085,2448.1,2447.7,1.607]
[1725200824288,0.3883,2448.1,2447.7,1.607]
[1725200824683,4.2621127,2448.2,2447.7,1.607]
[1725200824879,3.2078,2447.9,2447.4,4.148]
[1725200825076,3.2078,2447.5,2447.1,1.607]
[1725200825376,0.40861,2447.4,2447.1,1.607]
[1725200825681,3.2078,2447.5,2447.1,2.01566]
[1725200826085,0.40859,2447.6,2447.1,2.01566]
[1725200826282,1.04818036,2447.8,2447.2,5.4319562]
[1725200826595,3.2078,2447.7,2447.2,5.4319562]
[1725200826890,0.40862,2447.4,2447.1,1.607]
[1725200827089,0.40865,2447.2,2447.0,0.00613234]
[1725200827485,0.40866,2447.1,2447.0,0.00613234]
[1725200827885,4.49506,2447.1,2447.0,0.00613234]
[1725200828087,7.70286,2447.1,2447.0,0.00613234]
[1725200828691,14.75104036,2447.1,2447.0,0.00613234]
[1725200828990,0.40874,2446.7,2446.1,4.9602]
[1725200829185,1.45776962,2446.8,2446.1,4.9602]
[1725200829494,1.04904962,2446.9,2446.3,0.4088]
[1725200829788,0.00613234,2446.8,2446.4,0.00613234]
[1725200830091,4.25684962,2446.7,2446.4,0.00613234]
[1725200830286,3.61654,2446.7,2446.4,0.00613234]
[1725200830479,4.66558962,2446.7,2446.4,0.00613234]
[1725200830690,3.61654,2446.7,2446.4,0.00613234]
[1725200830995,3.2078,2446.7,2446.4,0.00613234]
[1725200831489,3.61653,2446.7,2446.4,0.00613234]
[1725200831689,3.2078,2446.7,2446.4,0.00613234]
[1725200831889,0.40876,2446.5,2446.4,0.00613234]
[1725200832384,4.49596,2446.5,2446.4,0.00613234]
[1725200833296,4.0872,2446.5,2446.4,0.00613234]
[1725200833592,0.7991,2446.6,2446.4,0.00613234]
[1725200833893,3.61653,2446.7,2446.4,0.00613234]
[1725200834693,0.41485234,2446.8,2446.4,0.00613234]
[1725200835082,0.00613234,2446.8,2446.4,4.09333234]
[1725200835283,0.00613234,2446.8,2446.6,0.40873]
[1725200835484,0.00613234,2446.8,2446.7,0.40873]
[1725200835792,3.2078,2447.4,2447.0,0.40867]
[1725200836787,3.21393234,2447.4,2447.0,0.40867]
[1725200838293,3.21393234,2447.4,2446.9,3.61649]
[1725200838499,3.62255234,2447.4,2446.9,3.61649]
[1725200838794,4.26298196,2447.4,2446.5,4.8206]
[1725200838991,0.40866,2447.1,2446.6,0.40874]
[1725200839187,0.40866,2447.1,2446.6,13.98670804]
[1725200839398,4.26298196,2447.4,2446.6,13.98670804]
[1725200839399,1.04904962,2447.3,2446.6,13.57796804]
[1725200839590,1.04904962,2447.3,2446.5,4.0268]
[1725200839591,0.40869,2447.0,2446.5,0.819]
[1725200840095,2.07705,2447.2,2446.6,5.6636995]
[1725200840487,1.6684,2447.2,2446.6,5.2549595]
[1725200840800,1.6684,2447.2,2446.5,0.819]
[1725200840801,3.2078,2447.1,2446.5,0.819]
[1725200841188,0.40871,2446.9,2446.5,0.819]
[1725200841788,1.45773962,2447.0,2446.5,0.819]
[1725200841991,4.66551962,2447.1,2446.5,1.22776]
[1725200842395,0.40868,2447.0,2446.5,1.22776]
[1725200842599,0.40868,2447.0,2446.5,0.819]
[1725200842791,4.25684962,2447.1,2446.5,0.819]
[1725200842995,0.4087,2446.9,2446.4,3.21393234]
[1725200843391,0.40872,2446.8,2446.4,3.21393234]
[1725200843597,3.2078,2446.8,2446.4,0.00613234]
[1725200843911,0.40873,2446.7,2446.4,0.00613234]
[1725200844194,0.40875,2446.6,2446.4,0.00613234]
[1725200844398,1.19305,2446.6,2446.4,0.00613234]
[1725200844792,0.40876,2446.5,2446.4,0.00613234]
[1725200845102,6.39210962,2446.5,2446.4,0.00613234]
[1725200845897,1.45777962,2446.8,2446.4,0.00613234]
[1725200846095,0.40873,2446.8,2446.4,0.00613234]
[1725200846295,0.40874,2446.7,2446.4,0.00613234]
[1725200846500,4.25684962,2446.8,2446.4,0.00613234]
[1725200846797,0.40874,2446.7,2446.4,0.00613234]
[1725200847004,0.40873,2446.7,2446.4,0.00613234]
[1725200847499,0.40874,2446.7,2446.4,0.00613234]
[1725200847801,4.25684962,2446.8,2446.4,0.00613234]
[1725200848105,3.61652,2446.8,2446.4,0.00613234]
[1725200848400,4.66556962,2446.8,2446.4,0.00613234]
[1725200848598,0.40873,2446.7,2446.4,0.00613234]
[1725200848900,4.66556962,2446.8,2446.4,0.00613234]
[1725200849093,0.40873,2446.7,2446.4,0.00613234]
[1725200849296,4.66556962,2446.8,2446.4,0.00613234]
[1725200849691,0.40873,2446.7,2446.4,0.00613234]
[1725200850298,2.35787443,2446.9,2446.4,0.41490234]
[1725200850299,2.24205962,2446.9,2446.4,0.41490234]
[1725200850495,3.2078,2446.8,2446.4,0.00613234]
[1725200850696,0.40876,2446.5,2446.4,0.00613234]
[1725200850896,1.45780962,2446.5,2446.4,0.00613234]
[1725200851200,4.49596,2446.5,2446.4,0.00613234]
[1725200851896,5.54500962,2446.5,2446.4,0.00613234]
[1725200854401,0.40876,2446.5,2446.4,0.00613234]
[1725200854790,1.04904962,2446.5,2446.4,0.00613234]
[1725200855001,1.45778962,2446.7,2446.4,0.00613234]
[1725200855204,0.40876,2446.5,2446.4,0.00613234]
[1725200855896,1.04904962,2446.7,2446.4,0.00613234]
[1725200856698,1.45778962,2446.7,2446.4,0.00613234]
[1725200857295,0.40875,2446.6,2446.4,0.00613234]
[1725200858205,1.45778962,2446.7,2446.4,0.00613234]
[1725200858403,1.04904962,2446.7,2446.4,0.00613234]
[1725200859005,1.45777962,2446.7,2446.4,0.00613234]
[1725200859201,1.04904962,2446.7,2446.4,0.00613234]
[1725200859510,1.04904962,2447.0,2446.5,0.40875]
[1725200859811,1.04904962,2447.0,2446.5,2.00505]
[1725200860294,1.04904962,2447.0,2446.5,1.5963]
[1725200860501,0.4087,2446.9,2446.5,1.5963]
[1725200861006,1.45773962,2447.0,2446.5,2.00506]
[1725200861194,1.04904962,2447.2,2446.9,0.40868]
[1725200861398,1.05518196,2447.4,2446.8,0.8229]
[1725200861694,1.05518196,2447.4,2446.8,6.57035276]
[1725200861695,1.46380196,2447.4,2446.8,6.57035276]
[1725200862009,0.00613234,2447.4,2446.9,0.20612803]
[1725200862192,0.00613234,2447.4,2447.0,0.40867]
[1725200862393,0.00613234,2447.4,2447.0,5.33875276]
[1725200862595,4.26298196,2447.4,2446.6,4.148]
[1725200862795,1.05518196,2447.4,2446.8,5.40556338]
[1725200863004,0.00613234,2447.4,2447.1,8.61336338]
[1725200863208,0.00613234,2447.4,2447.3,0.40863]
[1725200863505,0.00613234,2447.4,2447.3,9.90059338]
[1725200863697,4.25684962,2448.1,2447.3,15.49196338]
[1725200863698,3.2078,2448.1,2447.3,15.49196338]
[1725200863900,3.2078,2448.1,2447.7,3.61635]
[1725200864098,3.2078,2448.1,2447.8,1.6147]
[1725200864311,4.25684962,2448.1,2447.8,0.7796]
[1725200864607,1.04904962,2448.0,2447.7,3.21393234]
[1725200864809,4.25684962,2448.1,2447.7,3.21393234]
[1725200865305,1.45757962,2447.9,2447.7,3.21393234]
[1725200865507,0.7848,2447.8,2447.7,3.21393234]
[1725200866011,5.91944962,2447.8,2447.7,3.21393234]
[1725200866510,4.8704,2447.8,2447.7,3.21393234]
[1725200867907,5.91944962,2447.8,2447.7,3.21393234]
[1725200868299,1.83384962,2447.8,2447.7,3.21393234]
[1725200868499,0.7848,2447.8,2447.7,3.21393234]
[1725200869502,1.04904962,2448.0,2447.7,7.29953234]
[1725200869700,4.78137443,2448.1,2447.8,0.8131]
[1725200869701,4.25684962,2448.1,2447.8,0.8131]
[1725200869900,3.2078,2448.1,2447.8,0.8131]
[1725200870112,3.2078,2448.1,2447.8,0.30079444]
[1725200870314,3.2078,2448.1,2447.9,0.40852]
[1725200870510,0.00613234,2448.2,2448.0,4.49331]
[1725200870705,0.00613234,2448.2,2447.9,9.39113863]
[1725200870906,0.00613234,2448.2,2448.1,5.68534452]
[1725200871109,0.00613234,2448.2,2448.1,0.4085]
[1725200871410,0.00613234,2448.2,2448.1,9.77014452]
[1725200871818,1.04904962,2448.8,2448.1,9.36164452]
[1725200872004,0.61892138,2448.4,2448.3,3.2078]
[1725200872205,0.61892138,2448.6,2448.3,3.2078]
[1725200872415,0.61892138,2448.6,2448.4,0.40844]
[1725200872717,0.61892138,2448.6,2448.5,0.40843]
[1725200872906,0.00400331,2448.7,2448.6,0.40841]
[1725200873414,0.00400331,2448.7,2448.6,5.29221]
[1725200874015,0.00400331,2448.7,2448.6,13.75868764]
[1725200875611,0.8014,2449.3,2448.9,0.40836]
[1725200875817,0.61892138,2449.0,2448.9,0.40836]
[1725200876612,0.8014,2449.3,2448.9,10.49155]
[1725200876914,0.61892138,2449.1,2449.0,0.40835]
[1725200877118,0.61892138,2449.1,2449.0,5.75077025]
[1725200877417,2.04934,2449.7,2449.2,0.4083]
[1725200877607,0.61892138,2449.3,2449.2,0.41443234]
[1725200878313,0.61892138,2449.3,2449.2,3.62223234]
[1725200878716,4.0241,2450.1,2449.2,13.29713234]
[1725200879021,0.61892138,2449.7,2449.3,0.8207]
[1725200879323,0.61892138,2449.7,2449.6,0.40825]
[1725200879614,0.40822,2449.8,2449.4,5.35459396]
[1725200879817,0.61892138,2449.5,2449.4,5.35459396]
[1725200880620,0.61892138,2449.5,2449.2,7.36193234]
[1725200880621,1.02719138,2449.5,2449.2,7.36193234]
[1725200880822,0.61892138,2449.3,2449.2,7.36193234]
[1725200882322,0.61892138,2449.3,2449.2,3.21393234]
[1725200882514,1.02722138,2449.3,2449.2,0.00613234]
[1725200882722,0.61892138,2449.3,2449.2,0.00613234]
[1725200882923,1.02722138,2449.3,2449.2,0.00613234]
[1725200883918,0.40837,2448.9,2448.6,4.148]
[1725200884127,0.61892138,2448.7,2448.4,3.2078]
[1725200884323,0.61892138,2448.5,2448.4,3.2078]
[1725200884512,0.61892138,2448.6,2448.4,3.61625]
[1725200884712,0.61892138,2448.5,2448.4,3.2078]
[1725200885020,0.61892138,2448.5,2448.4,3.61625]
[1725200885221,0.61892138,2448.5,2448.4,3.2078]
[1725200886711,1.02735138,2448.5,2448.4,3.2078]
[1725200886915,1.02735138,2448.5,2448.2,4.15413234]
[1725200887107,0.61892138,2448.3,2448.2,4.15413234]